bitfinex-derivatives/quotes_SOLF0:USTF0_20250907
["timestamp","ask_amount","ask_price","bid_price","bid_amount"]
[1757284504843,7.87,205.13,205.1,1.50692421]
[1757284505044,5.44494486,205.14,205.1,1.50692421]
[1757284505549,7.35,205.13,205.1,1.50692421]
[1757284505949,7.35,205.13,205.07,0.79]
[1757284506250,7.35,205.13,205.09,1.50692421]
[1757284506545,5.44494486,205.14,205.09,1.50692421]
[1757284507145,7.35,205.13,205.1,0.8]
[1757284507346,5.44494486,205.14,205.09,2.30692421]
[1757284507650,7.35,205.13,205.09,2.30692421]
[1757284507844,5.44494486,205.14,205.09,2.30692421]
[1757284508050,7.35,205.13,205.09,2.30692421]
[1757284508249,5.44494486,205.14,205.09,2.30692421]
[1757284508455,7.35,205.13,205.07,1.50692421]
[1757284508639,7.35,205.13,205.08,4.34875034]
[1757284508842,7.35,205.13,205.09,4.34875034]
[1757284509046,6.95186907,205.12,205.06,0.8]
[1757284509346,7.35,205.11,205.07,4.34965224]
[1757284509542,7.35,205.11,205.05,1.50692421]
[1757284509743,7.35,205.1,205.06,5.14974252]
[1757284509942,0.03451847,205.11,205.07,4.34974252]
[1757284510142,7.35,205.1,205.06,0.8]
[1757284510349,0.03451847,205.11,205.07,4.34924889]
[1757284510648,7.35,205.1,205.06,0.8]
[1757284510848,0.03451847,205.11,205.07,4.34942856]
[1757284511044,0.03451847,205.11,205.06,0.8]
[1757284511253,7.35,205.1,205.07,4.34942856]
[1757284511454,0.03451847,205.11,205.06,0.8]
[1757284511655,0.03451847,205.11,205.07,5.85612186]
[1757284511855,0.03451847,205.11,205.09,0.8]
[1757284512351,7.38451847,205.11,205.09,0.8]
[1757284512547,7.38451847,205.11,205.09,2.30692421]
[1757284514254,7.38451847,205.11,205.09,1.50692421]
[1757284514459,7.38451847,205.11,205.06,0.8]
[1757284514661,7.38451847,205.11,205.08,0.8]
[1757284514860,7.35,205.1,205.09,4.34828942]
[1757284515860,7.35,205.1,205.05,2.35470204]
[1757284516061,0.03451847,205.11,205.06,4.34844919]
[1757284516257,7.35,205.1,205.07,4.34844919]
[1757284516463,7.35,205.1,205.08,4.34844919]
[1757284516659,7.35,205.1,205.09,4.34844919]
[1757284518364,0.03451847,205.11,205.05,2.35470204]
[1757284518559,0.03451847,205.11,205.06,5.14831063]
[1757284518761,0.03451847,205.11,205.07,4.34831063]
[1757284519062,0.03451847,205.11,205.08,4.34831063]
[1757284519263,7.35,205.1,205.06,0.8]
[1757284519460,7.35,205.1,205.07,4.34827731]
[1757284519657,7.35,205.1,205.08,4.34827731]
[1757284519856,7.35,205.1,205.03,0.8]
[1757284520057,7.35,205.1,205.04,4.34827731]
[1757284520257,7.35,205.1,205.05,4.34827731]
[1757284520457,7.35,205.1,205.06,4.34827731]
[1757284520662,0.03451847,205.11,205.07,4.34827731]
[1757284520866,7.35,205.1,205.03,0.8]
[1757284521066,7.35,205.1,205.04,4.34873501]
[1757284521366,7.35,205.1,205.05,4.34873501]
[1757284521568,7.35,205.1,205.06,4.34873501]
[1757284521864,7.35,205.1,205.07,4.34873501]
[1757284522064,7.35,205.1,205.03,0.8]
[1757284522367,7.35,205.1,205.04,4.34844891]
[1757284522558,7.35,205.1,205.05,4.34844891]
[1757284522870,7.35,205.1,205.06,4.34844891]
[1757284523057,5.47946333,205.11,205.07,4.34844891]
[1757284523261,7.35,205.1,205.03,0.8]
[1757284523463,7.35,205.1,205.04,4.34807947]
[1757284523663,7.35,205.1,205.05,4.34807947]
[1757284523863,7.35,205.1,205.06,4.34807947]
[1757284524063,5.47946333,205.11,205.07,4.34807947]
[1757284524270,7.35,205.1,205.03,0.8]
[1757284529769,7.35,205.1,205.0,3.14470204]
[1757284529970,12.79494486,205.1,205.01,0.79]
[1757284538177,7.35,205.1,205.01,0.79]
[1757284539280,12.79494486,205.1,205.01,0.79]
[1757284539578,7.35,205.1,205.01,0.79]
[1757284545375,7.35,205.1,205.01,5.1795]
[1757284545579,7.35,205.1,205.04,0.8]
[1757284547684,7.35,205.1,205.06,2.35470204]
[1757284547984,8.06,205.13,205.06,2.35470204]
[1757284550784,8.06,205.13,205.04,0.8]
[1757284550976,8.06,205.13,205.06,2.35470204]
[1757284554387,8.06,205.13,205.04,0.8]
[1757284554586,8.06,205.13,205.05,2.35470204]
[1757284555585,13.50494486,205.13,205.05,3.15470204]
[1757284559585,5.44494486,205.15,205.11,3.15470204]
[1757284559784,8.06,205.14,205.11,3.15470204]
[1757284559987,8.06,205.17,205.11,3.15470204]
[1757284566986,8.06,205.17,205.12,0.79]
[1757284567188,5.44494486,205.19,205.14,2.35470204]
[1757284567189,8.1,205.19,205.14,2.35470204]
[1757284567389,8.1,205.22,205.16,0.79]
[1757284569292,8.1,205.22,205.14,2.35470204]
[1757284575295,8.1,205.22,205.13,0.79]
[1757284576300,1.50613155,205.21,205.14,1.50613155]
[1757284576500,8.1,205.2,205.14,1.50613155]
[1757284579400,8.1,205.2,205.07,16.06]
[1757284579401,8.1,205.22,205.16,2.29613155]
[1757284580205,8.1,205.22,205.16,1.50613155]
[1757284582408,124.80494486,205.25,205.0,68.2863]
[1757284582409,8.1,205.2,205.1,0.79]
[1757284582601,8.1,205.2,205.13,1.50613155]
[1757284584707,8.1,205.2,205.05,28.26]
[1757284584708,8.1,205.16,205.04,101.21887712]
[1757284584913,1.50613155,205.14,205.09,1.50613155]
[1757284585103,8.1,205.13,205.09,1.50613155]
[1757284585504,1.50613155,205.14,205.09,1.50613155]
[1757284585902,8.1,205.13,205.09,1.50613155]
[1757284586108,1.50613155,205.14,205.09,1.50613155]
[1757284586310,8.1,205.13,205.09,1.50613155]
[1757284586501,1.50613155,205.14,205.09,1.50613155]
[1757284586899,8.1,205.13,205.09,1.50613155]
[1757284587508,1.50613155,205.14,205.09,1.50613155]
[1757284587808,8.1,205.13,205.09,1.50613155]
[1757284588004,1.50613155,205.14,205.09,1.50613155]
[1757284588909,8.1,205.13,205.09,1.50613155]
[1757284589105,1.50613155,205.16,205.09,1.50613155]
[1757284589309,8.1,205.15,205.09,1.50613155]
[1757284589606,8.1,205.15,205.11,1.50613155]
[1757284589811,9.60613155,205.18,205.11,6.68363155]
[1757284591808,8.1,205.18,205.13,1.50613155]
[1757284592206,8.1,205.19,205.13,1.50613155]
[1757284595214,8.1,205.19,205.11,5.1775]
[1757284595508,8.02,205.17,205.12,1.50613155]
[1757284595710,8.02,205.15,205.1,1.50613155]
[1757284595904,8.02,205.15,205.09,1.50613155]
[1757284597811,8.02,205.15,205.11,1.50613155]
[1757284598009,1.50613155,205.16,205.11,1.50613155]
[1757284598210,8.02,205.15,205.11,1.50613155]
[1757284598414,1.50613155,205.16,205.11,1.50613155]
[1757284598615,8.02,205.15,205.11,1.50613155]
[1757284598808,1.50613155,205.16,205.11,1.50613155]
[1757284599611,8.02,205.15,205.11,1.50613155]
[1757284599811,1.50613155,205.18,205.12,0.8]
[1757284600109,8.02,205.17,205.13,1.50613155]
[1757284600314,8.02,205.19,205.13,2.30613155]
[1757284600913,8.02,205.19,205.13,1.50613155]
[1757284601518,1.50613155,205.18,205.13,1.50613155]
[1757284601718,1.50613155,205.18,205.1,0.8]
[1757284601719,8.02,205.15,205.09,1.50613155]
[1757284605229,8.02,205.13,205.04,102.01887712]
[1757284605423,8.02,205.1,205.04,103.52500867]
[1757284606124,8.02,205.1,205.04,102.01887712]
[1757284606425,8.02,205.1,205.04,103.52500867]
[1757284609836,8.02,205.1,205.04,102.01887712]
[1757284610032,8.02,205.1,205.04,103.52500867]
[1757284611426,8.02,205.13,205.08,1.50613155]
[1757284611625,8.02,205.13,205.11,0.8]
[1757284611831,8.02,205.18,205.12,1.50613155]
[1757284612031,8.02,205.16,205.09,1.50613155]
[1757284613334,8.02,205.16,205.12,0.8]
[1757284614034,8.02,205.18,205.12,0.8]
[1757284614334,8.02,205.19,205.15,2.30613155]
[1757284615430,1.50613155,205.22,205.15,2.30613155]
[1757284615637,8.02,205.21,205.15,2.30613155]
[1757284616939,8.02,205.21,205.12,4.3872]
[1757284617136,8.02,205.19,205.13,1.50613155]
[1757284623246,8.02,205.17,205.11,1.50613155]
[1757284625044,8.02,205.17,205.08,5.1881]
[1757284625340,7.83,205.13,205.04,102.00887712]
[1757284625540,7.83,205.11,205.06,1.50613155]
[1757284625744,1.50613155,205.12,205.06,1.50613155]
[1757284626142,7.83,205.11,205.06,1.50613155]
[1757284626546,1.50613155,205.14,205.09,0.79]
[1757284626747,7.83,205.13,205.09,0.79]
[1757284627142,1.50613155,205.14,205.09,2.29613155]
[1757284627346,7.83,205.13,205.09,2.29613155]
[1757284627648,7.83,205.12,205.09,1.50613155]
[1757284627843,0.03260283,205.13,205.07,1.50613155]
[1757284628048,7.86260283,205.13,205.07,1.50613155]
[1757284629050,7.86260283,205.13,205.07,5.89443155]
[1757284629955,7.86260283,205.13,205.09,2.29613155]
[1757284630155,7.83,205.12,205.09,2.29613155]
[1757284632054,7.83,205.12,205.09,1.50613155]
[1757284632456,0.03260283,205.13,205.09,1.50613155]
[1757284632649,7.83,205.12,205.07,1.50613155]
[1757284632848,0.03260283,205.13,205.07,1.50613155]
[1757284633248,7.83,205.12,205.07,1.50613155]
[1757284633657,0.03260283,205.13,205.07,1.50613155]
[1757284634153,0.03260283,205.13,205.05,4.3888]
[1757284634154,7.83,205.12,205.05,4.3888]
[1757284634365,7.83,205.12,205.07,1.50613155]
[1757284634659,1.50613155,205.12,205.04,102.72500867]
[1757284634861,0.03260283,205.13,205.03,1.50613155]
[1757284634862,7.83,205.09,205.03,1.50613155]
[1757284636060,7.83,205.09,205.02,0.79]
[1757284636256,7.83,205.09,205.02,2.29613155]
[1757284637058,0.48,205.09,204.95,4.08470955]
[1757284637364,1.50613155,205.01,204.94,1.50613155]
[1757284637556,7.83,205.0,204.94,1.50613155]
[1757284638462,7.83,205.0,204.93,0.79]
[1757284649860,7.83,205.0,204.95,4.3909]
[1757284650063,7.83,205.05,204.95,4.3909]
[1757284655870,7.83,205.05,204.94,0.79]
[1757284658172,7.83,205.05,204.94,5.1811]
[1757284660466,2.35786784,205.03,204.94,0.79]
[1757284660674,7.87,205.02,204.91,0.8]
[1757284660969,7.87,205.02,204.91,5.1917]
[1757284666678,7.87,205.02,204.93,0.8]
[1757284677080,7.87,205.02,204.93,5.1913]
[1757284677680,7.87,205.02,204.94,4.3911]
[1757284677886,7.87,205.02,204.95,0.8]
[1757284679088,7.87,205.05,204.97,4.3904]
[1757284680287,13.31494486,205.05,204.97,4.3904]
[1757284680985,13.31494486,205.05,204.98,5.1902]
[1757284681186,7.87,205.05,204.98,0.8]
[1757284682090,7.87,205.05,205.0,4.3898]
[1757284682392,7.87,205.06,205.0,4.3898]
[1757284684889,7.87,205.06,204.98,5.1902]
[1757284686290,7.87,205.06,205.0,0.81]
[1757284686694,7.87,205.06,204.95,7.55876784]
[1757284686893,7.87,205.06,204.95,3.16786784]
[1757284687896,7.87,205.06,204.96,0.81]
[1757284688895,7.87,205.06,204.96,5.2007]
[1757284691094,7.87,205.06,204.97,5.2004]
[1757284691898,7.87,205.06,204.97,0.81]
[1757284692199,7.97,205.04,204.93,0.81]
[1757284692992,2.35786784,205.02,204.93,0.81]
[1757284693197,7.97,205.01,204.9,0.81]
[1757284694701,7.97,204.98,204.9,0.81]
[1757284698800,7.97,204.98,204.86,0.81]
[1757284699897,7.97,204.98,204.88,0.81]
[1757284700398,2.35786784,204.99,204.88,0.81]
[1757284700399,7.97,204.94,204.89,1.50969377]
[1757284700899,1.50969377,204.95,204.89,1.50969377]
[1757284701301,7.97,204.94,204.89,1.50969377]
[1757284701803,1.50969377,204.95,204.89,1.50969377]
[1757284702002,7.97,204.94,204.89,1.50969377]
[1757284702205,1.50969377,204.95,204.89,1.50969377]
[1757284702907,7.97,204.94,204.88,1.50969377]
[1757284703206,7.97,204.94,204.88,2.31969377]
[1757284704201,1.50969377,204.93,204.88,0.81]
[1757284704505,7.97,204.92,204.86,1.50969377]
[1757284710213,1.50969377,204.91,204.83,328.81]
[1757284710413,1.50969377,204.91,204.85,1.50969377]
[1757284710615,7.97,204.9,204.85,1.50969377]
[1757284710811,1.50969377,204.91,204.85,1.50969377]
[1757284711015,7.97,204.9,204.85,1.50969377]
[1757284711614,0.03107531,204.9,204.85,1.50969377]
[1757284711810,7.97,204.89,204.85,2.31969377]
[1757284712219,0.03107531,204.9,204.85,2.31969377]
[1757284712417,7.97,204.89,204.85,2.31969377]
[1757284712613,0.03107531,204.9,204.85,2.31969377]
[1757284712809,7.97,204.89,204.85,2.31969377]
[1757284713016,0.03107531,204.9,204.85,2.31969377]
[1757284713214,7.97,204.89,204.83,1.50969377]
[1757284713408,9.47969377,204.89,204.83,1.50969377]
[1757284713812,1.50969377,204.85,204.79,0.8]
[1757284714014,7.97,204.84,204.79,0.8]
[1757284714220,1.50969377,204.85,204.79,0.8]
[1757284714418,7.97,204.84,204.78,120.88969377]
[1757284714620,7.97,204.88,204.82,1.50969377]
[1757284714810,7.97,204.88,204.84,1.50969377]
[1757284715017,7.97,204.9,204.84,1.50969377]
[1757284716119,7.97,204.9,204.83,5.1934]
[1757284716318,7.97,204.9,204.83,1.50969377]
[1757284717020,7.97,204.9,204.81,4.3939]
[1757284717021,8.86969377,204.91,204.85,1.50969377]
[1757284719324,7.36,204.91,204.85,1.50969377]
[1757284721923,7.36,204.89,204.83,1.50969377]
[1757284723513,7.36,204.89,204.81,5.1938]
[1757284723721,7.36,204.89,204.84,1.50969377]
[1757284723917,1.50969377,204.92,204.86,1.50969377]
[1757284724519,7.36,204.91,204.86,1.50969377]
[1757284726424,1.50969377,204.9,204.79,5.1943]
[1757284726624,7.36,204.89,204.83,1.50969377]
[1757284729220,7.36,204.89,204.85,1.50969377]
[1757284729427,7.36,204.9,204.85,1.50969377]
[1757284730225,1.50969377,204.91,204.85,1.50969377]
[1757284730827,7.36,204.9,204.85,1.50969377]
[1757284731133,1.50969377,204.91,204.85,1.50969377]
[1757284733330,7.36,204.9,204.85,1.50969377]
[1757284733924,1.50969377,204.91,204.85,1.50969377]
[1757284734533,7.36,204.9,204.85,1.50969377]
[1757284734727,1.50969377,204.91,204.85,1.50969377]
[1757284735130,7.36,204.9,204.85,1.50969377]
[1757284735635,1.50969377,204.91,204.85,1.50969377]
[1757284735830,7.36,204.9,204.85,1.50969377]
[1757284736438,7.36,204.9,204.81,0.8]
[1757284736639,7.36,204.9,204.84,1.50969377]
[1757284737142,7.36,204.9,204.82,1.50969377]
[1757284738240,7.36,204.88,204.82,1.50969377]
[1757284738736,7.36,204.88,204.81,5.1938]
[1757284738935,7.36,204.88,204.82,1.50969377]
[1757284742948,7.36,204.88,204.82,5.90329377]
[1757284743244,7.36,204.88,204.84,1.50969377]
[1757284743443,7.36,204.9,204.84,1.50969377]
[1757284748943,7.36,204.9,204.88,1.50969377]
[1757284749143,9.56969377,204.93,204.86,1.50969377]
[1757284749342,1.50969377,204.91,204.84,1.50969377]
[1757284749545,8.06,204.9,204.84,1.50969377]
[1757284749739,1.50969377,204.92,204.86,1.50969377]
[1757284749948,8.06,204.92,204.86,1.50969377]
[1757284750649,8.06,204.92,204.89,0.81]
[1757284751247,8.06,204.92,204.89,2.31969377]
[1757284751748,8.06,204.95,204.89,2.31969377]
[1757284756942,5.44494486,204.97,204.91,1.50969377]
[1757284757147,8.06,204.97,204.91,1.50969377]
[1757284757949,8.06,204.98,204.95,1.50969377]
[1757284758153,8.06,205.01,204.97,2.31969377]
[1757284758344,8.06,205.05,205.0,1.50969377]
[1757284758551,8.06,205.05,205.03,1.50969377]
[1757284759754,8.06,205.09,205.03,1.50969377]
[1757284760650,8.06,205.09,205.02,1.50969377]
[1757284760852,8.06,205.09,204.98,0.81]
[1757284761048,8.06,205.07,205.01,1.50969377]
[1757284761953,8.06,205.07,205.03,1.50969377]
[1757284762153,1.50969377,205.08,205.03,1.50969377]
[1757284762354,8.06,205.07,205.0,2.35577337]
[1757284768355,8.06,205.07,204.96,2.35577337]
[1757284768956,8.06,205.05,204.96,2.35577337]
[1757284769552,8.06,205.05,204.94,0.81]
[1757284769755,2.35577337,205.03,204.91,0.81]
[1757284769960,8.06,205.02,204.91,0.81]
[1757284772355,8.06,205.02,204.92,2.35577337]
[1757284772551,8.06,205.02,204.93,0.81]
[1757284773059,8.06,205.02,204.93,5.2012]
[1757284774265,8.06,205.02,204.93,0.81]
[1757284775869,8.06,205.02,204.92,2.35577337]
[1757284777269,8.06,205.02,204.9,6.74777337]
[1757284779272,8.06,205.02,204.9,2.35577337]
[1757284783474,8.06,205.02,204.93,3.14577337]
[1757284784373,8.06,205.02,204.94,0.79]
[1757284784568,8.06,205.02,204.96,2.35577337]
[1757284784774,8.06,205.02,204.98,0.79]
[1757284785775,7.94,205.09,204.98,0.79]
[1757284787774,7.94,205.09,204.98,3.14577337]
[1757284790278,7.94,205.09,204.99,0.79]
[1757284790479,7.94,205.09,205.02,0.79]
[1757284790774,7.94,205.14,205.04,3.14577337]
[1757284790977,7.94,205.14,204.95,93.8042]
[1757284791278,7.94,205.11,205.0,2.35577337]
[1757284792079,7.94,205.11,205.03,2.35577337]
[1757284792380,7.94,205.11,205.03,3.14577337]
[1757284792883,7.94,205.11,205.04,4.36328526]
[1757284793075,7.94,205.11,205.03,3.14577337]
[1757284793377,7.94,205.11,205.04,4.36355868]
[1757284793581,7.94,205.11,205.03,3.14577337]
[1757284793783,7.94,205.11,205.06,2.35577337]
[1757284793981,7.94,205.11,205.07,0.79]
[1757284794380,7.94,205.17,205.07,0.79]
[1757284799383,7.94,205.17,205.09,2.35577337]
[1757284803590,7.94,205.17,205.1,0.79]
[1757284803790,7.94,205.22,205.13,0.79]
[1757284804384,7.94,205.22,205.15,2.35577337]
[1757284804892,7.94,205.27,205.19,0.79]
[1757284805081,10.39577337,205.29,205.17,2.35577337]
[1757284805287,2.35577337,205.28,205.17,2.35577337]
[1757284805589,8.04,205.27,205.17,2.35577337]
[1757284806291,8.04,205.27,205.17,3.13577337]
[1757284806492,8.04,205.32,205.21,0.78]
[1757284806891,2.35577337,205.31,205.18,16.82]
[1757284807097,2.35577337,205.31,205.18,17.6]
[1757284807286,2.35577337,205.22,205.11,0.78]
[1757284807487,8.04,205.21,205.11,0.78]
[1757284810893,2.35577337,205.19,205.09,2.35577337]
[1757284811097,8.04,205.24,205.13,0.78]
[1757284811998,8.04,205.24,205.15,2.35577337]
[1757284812199,8.04,205.24,205.18,2.35577337]
[1757284814699,8.04,205.24,205.21,2.35577337]
[1757284816998,8.04,205.24,205.22,2.35577337]
[1757284818299,2.35577337,205.32,205.12,4.3873]
[1757284818501,8.04,205.28,205.15,2.35577337]
[1757284819709,8.04,205.28,205.18,2.35577337]
[1757284821707,8.04,205.28,205.21,2.35577337]
[1757284824412,1.50450247,205.31,205.25,1.50450247]
[1757284824610,347.90494486,205.42,205.25,1.50450247]
[1757284824611,8.04,205.39,205.29,1.50450247]
[1757284824815,9.54450247,205.39,205.32,1.50450247]
[1757284825212,8.04,205.36,205.3,1.50450247]
[1757284825711,8.04,205.41,205.28,0.78]
[1757284825911,8.04,205.39,205.33,1.50450247]
[1757284828914,14.92,205.47,205.17,0.78]
[1757284828915,1.50450247,205.36,205.17,0.78]
[1757284829114,8.04,205.35,205.28,1.50450247]
[1757284832716,1.50450247,205.34,205.28,1.50450247]
[1757284832915,8.04,205.33,205.28,1.50450247]
[1757284833311,1.50450247,205.34,205.28,1.50450247]
[1757284834213,8.04,205.33,205.28,1.50450247]
[1757284834408,1.50450247,205.34,205.28,1.50450247]
[1757284834714,8.04,205.33,205.28,1.50450247]
[1757284834918,1.50450247,205.34,205.28,1.50450247]
[1757284835314,7.67,205.34,205.28,1.50450247]
[1757284835716,1.50450247,205.36,205.29,1.50450247]
[1757284835909,7.67,205.35,205.29,1.50450247]
[1757284836414,7.67,205.33,205.26,1.50450247]
[1757284843518,7.67,205.33,205.21,16.08]
[1757284843519,7.67,205.33,205.28,1.50450247]
[1757284843922,1.50450247,205.34,205.28,1.50450247]
[1757284844123,7.67,205.33,205.28,1.50450247]
[1757284844419,1.50450247,205.34,205.28,1.50450247]
[1757284845122,7.67,205.33,205.28,1.50450247]
[1757284845318,8.80494486,205.4,205.16,0.76]
[1757284845319,7.67,205.29,205.16,0.76]
[1757284845524,7.67,205.27,205.21,1.50450247]
[1757284853222,7.67,205.27,205.23,1.50450247]
[1757284853425,7.67,205.27,205.18,119.6]
[1757284853426,9.17450247,205.32,205.25,2.26450247]
[1757284854132,7.67,205.32,205.25,2.26450247]
[1757284854326,9.17450247,205.32,205.25,2.26450247]
[1757284854529,9.17450247,205.32,205.25,1.50450247]
[1757284856230,5.44494486,205.34,205.27,1.50450247]
[1757284856231,7.67,205.34,205.27,1.50450247]
[1757284856431,9.17450247,205.34,205.27,1.50450247]
[1757284857025,7.67,205.31,205.27,1.50450247]
[1757284857225,7.67,205.31,205.25,0.76]
[1757284857226,7.67,205.31,205.25,2.26450247]
[1757284858631,7.67,205.31,205.2,0.76]
[1757284858831,7.67,205.29,205.22,1.50450247]
[1757284861737,7.67,205.29,205.2,0.76]
[1757284861937,7.67,205.29,205.22,1.50450247]
[1757284862838,1.50450247,205.28,205.22,1.50450247]
[1757284863032,7.67,205.27,205.22,1.50450247]
[1757284863240,1.50450247,205.28,205.22,1.50450247]
[1757284863434,7.67,205.27,205.22,1.50450247]
[1757284863936,1.50450247,205.24,205.18,1.50450247]
[1757284864138,32.6,205.39,205.15,436.49384563]
[1757284864139,7.67,205.21,205.15,327.64]
[1757284864329,7.67,205.27,205.19,1.50450247]
[1757284864535,7.67,205.3,205.24,1.50450247]
[1757284864936,7.67,205.3,205.21,0.76]
[1757284865136,7.67,205.28,205.22,5.83681402]
[1757284865333,7.67,205.28,205.25,1.50450247]
[1757284865532,7.67,205.28,205.25,2.27450247]
[1757284868141,1.50450247,205.31,205.25,1.50450247]
[1757284868536,7.67,205.3,205.25,1.50450247]
[1757284868733,7.67,205.3,205.26,0.77]
[1757284869442,7.67,205.32,205.26,2.27450247]
[1757284871045,7.67,205.34,205.28,1.50450247]
[1757284877246,7.67,205.34,205.26,0.77]
[1757284877445,7.67,205.34,205.27,5.83913431]
[1757284877745,7.67,205.34,205.28,4.33463184]
[1757284877946,7.67,205.34,205.27,1.50450247]
[1757284878247,7.67,205.34,205.28,4.3344593]
[1757284878448,7.67,205.34,205.27,1.50450247]
[1757284878648,7.67,205.34,205.28,4.33417613]
[1757284878948,7.67,205.34,205.27,1.50450247]
[1757284879148,7.67,205.34,205.28,4.33417613]
[1757284879350,7.67,205.34,205.27,1.50450247]
[1757284879543,7.67,205.34,205.28,4.33389581]
[1757284879849,7.67,205.34,205.27,1.50450247]
[1757284880049,7.67,205.34,205.28,4.33390375]
[1757284880249,7.67,205.34,205.27,1.50450247]
[1757284880445,7.67,205.34,205.29,1.50450247]
[1757284880647,7.67,205.36,205.3,4.33250653]
[1757284880853,7.67,205.36,205.29,1.50450247]
[1757284881646,7.67,205.34,205.27,1.50450247]
[1757284881845,7.67,205.32,205.27,1.50450247]
[1757284882049,7.67,205.32,205.25,1.50450247]
[1757284882249,7.67,205.32,205.26,4.33420693]
[1757284882450,7.67,205.32,205.27,5.83869113]
[1757284882653,1.50450247,205.33,205.28,4.33418866]
[1757284882848,7.67,205.32,205.27,1.50450247]
[1757284883047,1.50450247,205.33,205.28,4.33364838]
[1757284883242,7.67,205.32,205.27,1.50450247]
[1757284883546,1.50450247,205.33,205.27,1.50450247]
[1757284883748,7.67,205.32,205.27,1.50450247]
[1757284883949,1.50450247,205.33,205.27,1.50450247]
[1757284884452,7.67,205.33,205.29,0.77]
[1757284884653,7.67,205.33,205.29,2.27450247]
[1757284886546,7.67,205.33,205.29,0.77]
[1757284886744,7.67,205.33,205.3,4.33478185]
[1757284886943,7.67,205.37,205.29,0.77]
[1757284887144,13.11494486,205.37,205.29,0.77]
[1757284887751,2.3494935,205.39,205.33,3.1194935]
[1757284887752,5.44494486,205.39,205.33,3.1194935]
[1757284887953,7.67,205.4,205.34,4.33180002]
[1757284888152,7.67,205.38,205.28,0.77]
[1757284888453,7.67,205.38,205.29,4.33136709]
[1757284888658,7.67,205.38,205.3,4.33136709]
[1757284888953,7.67,205.38,205.28,0.77]
[1757284888954,7.67,205.38,205.31,4.33154697]
[1757284889158,7.67,205.38,205.28,0.77]
[1757284889352,7.67,205.38,205.29,4.33068533]
[1757284889551,7.67,205.38,205.3,4.33068533]
[1757284889753,7.67,205.38,205.31,4.33068533]
[1757284889958,7.67,205.38,205.28,3.1194935]
[1757284890155,7.67,205.38,205.29,4.33086726]
[1757284890358,7.67,205.38,205.3,4.33086726]
[1757284890550,7.67,205.38,205.31,4.32995963]
[1757284890755,7.67,205.38,205.28,0.77]
[1757284890956,7.67,205.38,205.29,4.33013945]
[1757284891259,7.67,205.38,205.28,0.77]
[1757284891463,7.67,205.38,205.29,4.33039588]
[1757284891662,7.67,205.38,205.28,0.77]
[1757284891861,7.67,205.38,205.29,4.33039588]
[1757284892061,7.67,205.38,205.28,0.77]
[1757284892264,7.67,205.38,205.29,4.33059238]
[1757284892558,7.67,205.38,205.3,4.32995711]
[1757284892760,7.67,205.38,205.28,0.77]
[1757284893062,7.67,205.38,205.3,0.77]
[1757284893358,7.67,205.38,205.31,4.32966061]
[1757284893663,7.67,205.38,205.3,0.77]
[1757284893855,7.67,205.38,205.31,4.32876227]
[1757284894061,7.67,205.38,205.3,0.77]
[1757284894355,7.67,205.38,205.31,4.32907205]
[1757284894559,7.67,205.38,205.3,0.77]
[1757284894761,7.67,205.38,205.31,4.32816897]
[1757284894960,7.67,205.38,205.3,0.77]
[1757284895162,7.67,205.38,205.31,4.32816897]
[1757284895463,7.67,205.38,205.3,0.77]
[1757284895664,7.67,205.38,205.31,4.32780401]
[1757284895865,7.67,205.38,205.3,0.77]